fUSD/lending_fUSD_20250617
["ID","MTS","AMOUNT","RATE_DAILY","PERIOD"]
[366224036,1750133441112,-150.0,0.00016666,2]
[366224037,1750133441122,-359.88243593,0.00016684,2]
[366224038,1750133441131,-150.0,0.00016691,2]
[366224039,1750133441141,-20039.0,0.000167,2]
[366224040,1750133441151,-359.88243584,0.00016708,2]
[366224041,1750133441161,-7113.0,0.00016708,2]
[366224042,1750133441171,-155.0,0.00016708,2]
[366224043,1750133441181,-4091.0,0.00016708,2]
[366224044,1750133441190,-884.0,0.00016708,2]
[366224045,1750133441200,-150.0,0.00016716,2]
[366224046,1750133441215,-150.0,0.00016725,2]
[366224047,1750133441224,-359.88243584,0.00016732,2]
[366224048,1750133441234,-150.0,0.0001674,2]
[366224049,1750133441243,-1664.421,0.00016752,2]
[366224050,1750133441254,-359.88243584,0.00016756,2]
[366224051,1750133441264,-833.87704394,0.00016761,2]
[366224052,1750133441275,-214.35,0.00016762,2]
[366224053,1750133441286,-490.0,0.00016762,2]
[366224054,1750133441295,-490.0,0.00016762,2]
[366224055,1750133441305,-448.27,0.00016762,2]
[366224056,1750133441315,-585.92,0.00016762,2]
[366224057,1750133441325,-490.0,0.00016762,2]
[366224058,1750133441336,-490.0,0.00016762,2]
[366224059,1750133441346,-490.0,0.00016762,2]
[366224060,1750133441357,-680.87,0.00016762,2]
[366224061,1750133441367,-490.0,0.00016762,2]
[366224062,1750133441376,-450.94,0.00016762,2]
[366224063,1750133441386,-602.59518759,0.00016762,2]
[366224064,1750133441395,-490.0,0.00016762,2]
[366224065,1750133441405,-490.0,0.00016762,2]
[366224066,1750133441415,-550.18,0.00016762,2]
[366224067,1750133441426,-490.0,0.00016762,2]
[366224068,1750133441437,-490.0,0.00016762,2]
[366224069,1750133441448,-490.0,0.00016762,2]
[366224070,1750133441459,-284.23210608,0.00016762,2]
[366224071,1750133441468,-490.0,0.00016762,2]
[366224072,1750133441478,-167.12,0.00016762,2]
[366224073,1750133441488,-490.0,0.00016762,2]
[366224074,1750133441497,-490.0,0.00016762,2]
[366224075,1750133441507,-492.10592039,0.00016763,2]
[366224076,1750133441517,-628.32799394,0.00016763,2]
[366224077,1750133441527,-494.25961668,0.00016763,2]
[366224078,1750133441537,-493.4853568,0.00016763,2]
[366224079,1750133441547,-490.0,0.00016763,2]
[366224080,1750133441557,-188.26287599,0.00016763,2]
[366224081,1750133441567,-485.58498864,0.00016763,2]
[366224082,1750133441576,-490.0,0.00016763,2]
[366224083,1750133441586,-491.3799459,0.00016763,2]
[366224084,1750133441595,-314.1692376,0.00016763,2]
[366224085,1750133441605,-490.60007123,0.00016763,2]
[366224086,1750133441614,-490.0,0.00016763,2]
[366224087,1750133441623,-490.0,0.00016763,2]
[366224088,1750133441633,-491.69080664,0.00016763,2]
[366224089,1750133441642,-491.31946396,0.00016763,2]
[366224090,1750133441651,-491.64049577,0.00016763,2]
[366224091,1750133441661,-490.82192507,0.00016763,2]
[366224092,1750133441670,-490.62795057,0.00016763,2]
[366224093,1750133441679,-491.3427641,0.00016763,2]
[366224094,1750133441690,-398.87489048,0.00016763,2]
[366224095,1750133441701,-491.0330094,0.00016763,2]
[366224096,1750133441710,-150.0,0.00016765,2]
[366224097,1750133441719,-359.88243584,0.0001678,2]
[366224098,1750133441729,-150.0,0.00016784,2]
[366224099,1750133441738,-150.0,0.00016784,2]
[366224100,1750133441748,-150.0,0.00016784,2]
[366224101,1750133441757,-946.0,0.00016784,2]
[366224102,1750133441767,-3333.0,0.00016784,2]
[366224103,1750133441776,-637.0,0.00016784,2]
[366224104,1750133441786,-802.0,0.00016784,2]
[366224105,1750133441796,-928.0,0.00016784,2]
[366224106,1750133441806,-2003.0,0.00016784,2]
[366224107,1750133441816,-558.0,0.00016784,2]
[366224108,1750133441826,-150.0,0.00016789,2]
[366224109,1750133441836,-359.88243584,0.00016804,2]
[366224110,1750133441846,-2000.0,0.00016809,2]
[366224111,1750133441856,-500.0,0.00016809,2]
[366224112,1750133441866,-200.0,0.00016809,2]
[366224113,1750133441876,-150.0,0.00016814,2]
[366224114,1750133441886,-154.02835638,0.00016826,2]
[366224115,1750133441896,-166.98304541,0.00016826,2]
[366224116,1750133441906,-359.88243584,0.00016828,2]
[366224117,1750133441916,-1618.0,0.0001683,2]
[366224118,1750133441926,-150.0,0.00016839,2]
[366224119,1750133441936,-154.02835638,0.00016851,2]
[366224120,1750133441946,-359.88243584,0.00016852,2]
[366224121,1750133441956,-150.0,0.00016856,2]
[366224122,1750133441967,-150.0,0.00016863,2]
[366224123,1750133441976,-154.02835638,0.00016875,2]
[366224124,1750133441988,-359.88243584,0.00016876,2]
[366224125,1750133441999,-150.0,0.00016888,2]
[366224126,1750133442009,-202.0,0.0001689,4]
[366224127,1750133442019,-237.0,0.000169,2]
[366224128,1750133442030,-376.0,0.000169,2]
[366224129,1750133442040,-167.86174077,0.000169,2]
[366224130,1750133442051,-769.0,0.000169,2]
[366224131,1750133442061,-154.02835638,0.000169,2]
[366224132,1750133442072,-359.88243584,0.000169,2]
[366224133,1750133442083,-150.0,0.00016912,2]
[366224134,1750133442093,-273.15,0.00016916,2]
[366224135,1750133442104,-490.0,0.00016925,2]
[366224136,1750133442114,-490.0,0.00016925,2]
[366224137,1750133442124,-2411.56,0.00016925,2]
[366224138,1750133442134,-490.0,0.00016925,2]
[366224139,1750133442144,-547.27,0.00016925,2]
[366224140,1750133442155,-529.62,0.00016925,2]
[366224141,1750133442166,-490.0,0.00016925,2]
[366224142,1750133442176,-490.0,0.00016925,2]
[366224143,1750133442186,-500.0,0.00016925,2]
[366224144,1750133442196,-604.0,0.00016925,2]
[366224145,1750133442211,-732.86,0.00016925,2]
[366224146,1750133442222,-646.75,0.00016925,2]
[366224147,1750133442232,-490.0,0.00016925,2]
[366224148,1750133442242,-944.63,0.00016925,2]
[366224149,1750133442253,-2312.83,0.00016925,2]
[366224150,1750133442264,-490.0,0.00016925,2]
[366224151,1750133442274,-490.0,0.00016925,2]
[366224152,1750133442285,-490.0,0.00016925,2]
[366224153,1750133442296,-490.0,0.00016925,2]
[366224154,1750133442306,-1613.86,0.00016925,2]
[366224155,1750133442316,-490.0,0.00016925,2]
[366224156,1750133442327,-490.0,0.00016925,2]
[366224157,1750133442337,-490.0,0.00016925,2]
[366224158,1750133442347,-490.0,0.00016925,2]
[366224159,1750133442357,-490.0,0.00016925,2]
[366224160,1750133442367,-1562.8,0.00016925,2]
[366224161,1750133442378,-920.1,0.00016925,2]
[366224162,1750133442388,-490.0,0.00016925,2]
[366224163,1750133442398,-490.0,0.00016925,2]
[366224164,1750133442409,-490.0,0.00016925,2]
[366224165,1750133442419,-490.0,0.00016925,2]
[366224166,1750133442429,-490.0,0.00016925,2]
[366224167,1750133442439,-490.0,0.00016925,2]
[366224168,1750133442449,-940.29,0.00016925,2]
[366224169,1750133442459,-490.0,0.00016925,2]
[366224170,1750133442469,-490.0,0.00016925,2]
[366224171,1750133442479,-490.0,0.00016925,2]
[366224172,1750133442488,-490.0,0.00016925,2]
[366224174,1750133442498,-490.0,0.00016925,2]
[366224175,1750133442509,-490.0,0.00016925,2]
[366224176,1750133442518,-626.93,0.00016925,2]
[366224177,1750133442528,-959.98,0.00016925,2]
[366224178,1750133442538,-1473.35,0.00016925,2]
[366224179,1750133442548,-718.15,0.00016925,2]
[366224180,1750133442558,-490.0,0.00016925,2]
[366224181,1750133442567,-1019.88,0.00016925,2]
[366224182,1750133442577,-490.0,0.00016925,2]
[366224183,1750133442587,-490.0,0.00016925,2]
[366224184,1750133442598,-490.0,0.00016925,2]
[366224185,1750133442607,-490.0,0.00016925,2]
[366224187,1750133442618,-863.75,0.00016925,2]
[366224188,1750133442629,-1455.55,0.00016925,2]
[366224189,1750133442640,-490.0,0.00016925,2]
[366224190,1750133442652,-490.0,0.00016925,2]
[366224192,1750133442662,-237.935,0.00016925,2]
[366224194,1750133442671,-490.0,0.00016925,2]
[366224196,1750133442680,-490.0,0.00016925,2]
[366224197,1750133442690,-1069.91,0.00016925,2]
[366224198,1750133442700,-1549.72,0.00016925,2]
[366224199,1750133442709,-1454.32,0.00016925,2]
[366224200,1750133442719,-490.0,0.00016925,2]
[366224201,1750133442729,-531.5,0.00016925,2]
[366224202,1750133442739,-490.0,0.00016925,2]
[366224204,1750133442749,-841.53,0.00016925,2]
[366224205,1750133442759,-541.22,0.00016925,2]
[366224207,1750133442769,-490.0,0.00016925,2]
[366224208,1750133442779,-490.39532986,0.00016925,2]
[366224209,1750133442788,-490.0,0.00016925,2]
[366224210,1750133442799,-490.0,0.00016925,2]
[366224211,1750133442808,-490.0,0.00016925,2]
[366224212,1750133442818,-628.27,0.00016925,2]
[366224213,1750133442828,-490.0,0.00016925,2]
[366224214,1750133442837,-490.0,0.00016925,2]
[366224215,1750133442847,-1150.36,0.00016925,2]
[366224216,1750133442857,-490.0,0.00016925,2]
[366224217,1750133442866,-490.0,0.00016925,2]
[366224218,1750133442875,-490.0,0.00016925,2]
[366224219,1750133442885,-490.0,0.00016925,2]
[366224220,1750133442894,-490.0,0.00016925,2]
[366224221,1750133442904,-490.0,0.00016925,2]
[366224222,1750133442914,-490.0,0.00016925,2]
[366224223,1750133442924,-904.94,0.00016925,2]
[366224224,1750133442934,-490.0,0.00016925,2]
[366224225,1750133442944,-490.0,0.00016925,2]
[366224226,1750133442955,-490.0,0.00016925,2]
[366224227,1750133442966,-490.0,0.00016925,2]
[366224228,1750133442976,-504.21665595,0.00016925,2]
[366224229,1750133442986,-490.0,0.00016926,2]
[366224230,1750133442996,-490.0,0.00016926,2]
[366224231,1750133443006,-530.62,0.00016926,2]
[366224232,1750133443017,-490.0,0.00016926,2]
[366224233,1750133443027,-490.0,0.00016926,2]
[366224234,1750133443037,-490.0,0.00016926,2]
[366224235,1750133443047,-605.04,0.00016926,2]
[366224236,1750133443057,-490.0,0.00016926,2]
[366224237,1750133443067,-352.22,0.00016926,2]
[366224238,1750133443077,-256.93,0.00016926,2]
[366224239,1750133443088,-578.76,0.00016926,2]
[366224240,1750133443098,-490.0,0.00016926,2]
[366224241,1750133443108,-490.0,0.00016926,2]
[366224242,1750133443118,-490.0,0.00016926,2]
[366224243,1750133443129,-490.0,0.00016926,2]
[366224244,1750133443139,-490.0,0.00016926,2]
[366224245,1750133443149,-313.81,0.00016926,2]
[366224246,1750133443159,-490.0,0.00016926,2]
[366224247,1750133443169,-492.88743719,0.00016926,2]
[366224248,1750133443179,-490.0,0.00016926,2]
[366224249,1750133443188,-490.0,0.00016926,2]
[366224250,1750133443198,-331.09372826,0.00016926,2]
[366224251,1750133443211,-490.0,0.00016926,2]
[366224252,1750133443221,-324.13,0.00016926,2]
[366224253,1750133443231,-490.0,0.00016926,2]
[366224254,1750133443240,-622.61,0.00016926,2]
[366224255,1750133443251,-490.0,0.00016926,2]
[366224256,1750133443260,-510.51,0.00016926,2]
[366224257,1750133443563,-490.0,0.00016926,2]
[366224258,1750133443574,-490.0,0.00016926,2]
[366224259,1750133443585,-356.84,0.00016926,2]
[366224260,1750133443595,-356.11,0.00016926,2]
[366224261,1750133443605,-490.0,0.00016926,2]
[366224262,1750133443615,-490.93246045,0.00016926,2]
[366224263,1750133443626,-490.0,0.00016926,2]
[366224264,1750133443637,-194.86928218,0.00016926,2]
[366224265,1750133443647,-286.58,0.00016926,2]
[366224266,1750133443656,-490.0,0.00016926,2]
[366224267,1750133443667,-490.0,0.00016926,2]
[366224268,1750133443676,-490.0,0.00016926,2]
[366224269,1750133443686,-506.92,0.00016926,2]
[366224270,1750133443696,-270.29081235,0.00016926,2]
[366224271,1750133443706,-490.0,0.00016926,2]
[366224272,1750133443716,-438.0138183,0.00016926,2]
[366224273,1750133443726,-490.0,0.00016926,2]
[366224274,1750133443737,-490.0,0.00016926,2]
[366224275,1750133443749,-490.0,0.00016926,2]
[366224276,1750133443759,-490.0,0.00016926,2]
[366224277,1750133443769,-345.88,0.00016926,2]
[366224278,1750133443778,-490.0,0.00016926,2]
[366224279,1750133443789,-490.0,0.00016926,2]
[366224280,1750133443799,-490.0,0.00016926,2]
[366224281,1750133443809,-490.0,0.00016926,2]
[366224282,1750133443820,-501.2,0.00016926,2]
[366224283,1750133443829,-490.0,0.00016926,2]
[366224284,1750133443839,-490.0,0.00016926,2]
[366224285,1750133443849,-334.31,0.00016926,2]
[366224286,1750133443859,-490.0,0.00016926,2]
[366224287,1750133443869,-605.85,0.00016926,2]
[366224288,1750133443879,-339.14,0.00016926,2]
[366224289,1750133443890,-490.0,0.00016926,2]
[366224290,1750133443901,-490.0,0.00016926,2]
[366224291,1750133443911,-574.18180576,0.00016926,2]
[366224292,1750133443921,-490.0,0.00016926,2]
[366224293,1750133443932,-181.43,0.00016926,2]
[366224294,1750133443942,-490.0,0.00016926,2]
[366224295,1750133443952,-490.0,0.00016926,2]
[366224296,1750133443965,-490.0,0.00016926,2]
[366224297,1750133443975,-312.16,0.00016926,2]
[366224298,1750133443986,-490.0,0.00016926,2]
[366224299,1750133443996,-165.98,0.00016926,2]
[366224300,1750133444006,-278.35,0.00016926,2]
[366224301,1750133444017,-530.51,0.00016926,2]
[366224302,1750133444027,-550.0,0.00016926,2]
[366224303,1750133444038,-490.0,0.00016926,2]
[366224304,1750133444048,-490.0,0.00016926,2]
[366224305,1750133444059,-490.0,0.00016926,2]
[366224306,1750133444068,-490.0,0.00016926,2]
[366224307,1750133444079,-490.0,0.00016926,2]
[366224308,1750133444089,-490.0,0.00016926,2]
[366224309,1750133444099,-490.0,0.00016926,2]
[366224310,1750133444109,-490.0,0.00016926,2]
[366224311,1750133444119,-490.0,0.00016926,2]
[366224312,1750133444131,-294.90894767,0.00016926,2]
[366224313,1750133444141,-480.5467986,0.00016926,2]
[366224314,1750133444152,-530.0,0.00016926,2]
[366224315,1750133444162,-504.86752957,0.00016926,2]
[366224316,1750133444173,-490.0,0.00016926,2]
[366224317,1750133444183,-490.0,0.00016926,2]
[366224318,1750133444193,-490.0,0.00016926,2]
[366224319,1750133444203,-490.0,0.00016926,2]
[366224320,1750133444218,-232.2120151,0.00016926,2]
[366224321,1750133444227,-490.0,0.00016926,2]
[366224322,1750133444237,-498.63,0.00016926,2]
[366224323,1750133444247,-490.0,0.00016926,2]
[366224324,1750133444258,-490.0,0.00016926,2]
[366224325,1750133444268,-490.0,0.00016926,2]
[366224326,1750133444277,-490.0,0.00016926,2]
[366224327,1750133444289,-490.0,0.00016926,2]
[366224328,1750133444299,-490.0,0.00016926,2]
[366224329,1750133444308,-490.0,0.00016926,2]
[366224330,1750133444319,-490.0,0.00016926,2]
[366224331,1750133444328,-490.0,0.00016926,2]
[366224332,1750133444338,-490.0,0.00016926,2]
[366224333,1750133444348,-490.0,0.00016926,2]
[366224334,1750133444358,-490.0,0.00016926,2]
[366224335,1750133444369,-536.73165733,0.00016926,2]
[366224336,1750133444379,-490.0,0.00016926,2]
[366224337,1750133444388,-490.0,0.00016926,2]
[366224338,1750133444398,-260.3,0.00016926,2]
[366224339,1750133444407,-601.29,0.00016926,2]
[366224340,1750133444417,-180.77,0.00016926,2]
[366224341,1750133444427,-490.0,0.00016926,2]
[366224342,1750133444436,-497.40586886,0.00016926,2]
[366224343,1750133444446,-490.0,0.00016926,2]
[366224344,1750133444455,-490.0,0.00016926,2]
[366224345,1750133444465,-271.62,0.00016926,2]
[366224346,1750133444475,-490.0,0.00016926,2]
[366224347,1750133444485,-490.0,0.00016926,2]
[366224348,1750133444494,-500.0,0.00016926,2]
[366224349,1750133444505,-557.6,0.00016926,2]
[366224350,1750133444514,-490.0,0.00016926,2]
[366224351,1750133444525,-440.19,0.00016926,2]
[366224352,1750133444535,-490.0,0.00016926,2]
[366224353,1750133444544,-184.74183768,0.00016926,2]
[366224354,1750133444554,-490.0,0.00016926,2]
[366224355,1750133444563,-490.0,0.00016926,2]
[366224356,1750133444573,-490.0,0.00016926,2]
[366224357,1750133444583,-490.0,0.00016926,2]
[366224358,1750133444592,-490.0,0.00016926,2]
[366224359,1750133444602,-490.0,0.00016926,2]
[366224360,1750133444612,-490.0,0.00016926,2]
[366224361,1750133444621,-490.0,0.00016926,2]
[366224362,1750133444631,-490.0,0.00016926,2]
[366224363,1750133444641,-446.08178114,0.00016926,2]
[366224364,1750133444651,-490.0,0.00016926,2]
[366224365,1750133444661,-490.0,0.00016926,2]
[366224366,1750133444671,-614.58350096,0.00016926,2]
[366224367,1750133444680,-499.364693,0.00016926,2]
[366224368,1750133444690,-490.0,0.00016926,2]
[366224369,1750133444700,-490.0,0.00016926,2]
[366224370,1750133444710,-490.0,0.00016926,2]
[366224371,1750133444719,-490.0,0.00016926,2]
[366224372,1750133444729,-389.17837426,0.00016926,2]
[366224373,1750133444739,-490.0,0.00016926,2]
[366224374,1750133444748,-491.37313709,0.00016926,2]
[366224375,1750133444758,-490.0,0.00016926,2]
[366224376,1750133444767,-500.0,0.00016926,2]
[366224377,1750133444777,-490.0,0.00016926,2]
[366224378,1750133444787,-490.0,0.00016926,2]
[366224379,1750133444797,-490.0,0.00016926,2]
[366224380,1750133444806,-490.0,0.00016926,2]
[366224381,1750133444817,-490.0,0.00016926,2]
[366224382,1750133444827,-490.0,0.00016926,2]
[366224383,1750133444837,-490.0,0.00016926,2]
[366224384,1750133444846,-490.0,0.00016926,2]
[366224385,1750133444856,-490.0,0.00016926,2]
[366224386,1750133444866,-490.0,0.00016926,2]
[366224387,1750133444875,-490.0,0.00016926,2]
[366224388,1750133444885,-490.0,0.00016926,2]
[366224389,1750133444895,-490.0,0.00016926,2]
[366224390,1750133444905,-490.0,0.00016926,2]
[366224391,1750133444915,-490.0,0.00016926,2]
[366224392,1750133444924,-490.0,0.00016926,2]
[366224393,1750133444936,-490.0,0.00016926,2]
[366224394,1750133444946,-490.0,0.00016926,2]
[366224395,1750133444955,-490.0,0.00016926,2]
[366224396,1750133444966,-431.20039004,0.00016926,2]
[366224397,1750133444976,-535.11,0.00016926,2]
[366224398,1750133444985,-490.0,0.00016926,2]
[366224399,1750133444995,-490.0,0.00016926,2]
[366224400,1750133445005,-490.0,0.00016926,2]
[366224401,1750133445014,-490.0,0.00016926,2]
[366224402,1750133445024,-158.23,0.00016926,2]
[366224403,1750133445034,-490.0,0.00016926,2]
[366224404,1750133445044,-490.0,0.00016926,2]
[366224405,1750133445054,-490.0,0.00016926,2]
[366224406,1750133445064,-563.20985034,0.00016926,2]
[366224407,1750133445074,-615.38,0.00016926,2]
[366224408,1750133445085,-490.0,0.00016926,2]
[366224409,1750133445095,-490.0,0.00016926,2]
[366224410,1750133445106,-300.05441048,0.00016926,2]
[366224411,1750133445116,-490.0,0.00016926,2]
[366224412,1750133445126,-490.0,0.00016926,2]
[366224413,1750133445136,-490.0,0.00016926,2]
[366224414,1750133445145,-551.07805693,0.00016926,2]
[366224415,1750133445155,-490.0,0.00016926,2]
[366224416,1750133445165,-490.0,0.00016926,2]
[366224417,1750133445174,-490.0,0.00016926,2]
[366224418,1750133445185,-490.0,0.00016926,2]
[366224419,1750133445194,-481.13,0.00016926,2]
[366224420,1750133445204,-485.0,0.00016926,2]
[366224421,1750133445217,-490.0,0.00016926,2]
[366224422,1750133445226,-406.65,0.00016926,2]
[366224423,1750133445237,-574.36527267,0.00016926,2]
[366224424,1750133445247,-490.0,0.00016926,2]
[366224425,1750133445256,-490.0,0.00016926,2]
[366224426,1750133445266,-490.0,0.00016926,2]
[366224427,1750133445276,-161.38,0.00016926,2]
[366224428,1750133445286,-625.97178023,0.00016926,2]
[366224429,1750133445297,-490.0,0.00016926,2]
[366224430,1750133445307,-191.27927065,0.00016926,2]
[366224431,1750133445317,-490.0,0.00016926,2]
[366224432,1750133445327,-490.0,0.00016926,2]
[366224433,1750133445336,-490.0,0.00016926,2]
[366224434,1750133445346,-490.0,0.00016926,2]
[366224435,1750133445356,-490.0,0.00016926,2]
[366224436,1750133445365,-490.0,0.00016926,2]
[366224437,1750133445375,-550.0,0.00016926,2]
[366224438,1750133445386,-490.0,0.00016926,2]
[366224439,1750133445396,-490.0,0.00016926,2]
[366224440,1750133445405,-490.0,0.00016926,2]
[366224441,1750133445415,-490.0,0.00016926,2]
[366224442,1750133445425,-490.0,0.00016926,2]
[366224443,1750133445435,-490.0,0.00016926,2]
[366224444,1750133445445,-446.18089631,0.00016926,2]
[366224448,1750133445721,-43.81910369,0.00016926,2]
[366224449,1750133445731,-490.0,0.00016926,2]
[366224451,1750133445741,-490.0,0.00016926,2]
[366224452,1750133445751,-490.0,0.00016926,2]
[366224453,1750133445761,-490.0,0.00016926,2]
[366224454,1750133445771,-490.0,0.00016926,2]
[366224455,1750133445780,-490.0,0.00016926,2]
[366224456,1750133445790,-490.0,0.00016926,2]
[366224457,1750133445800,-490.0,0.00016926,2]
[366224458,1750133445810,-490.0,0.00016926,2]
[366224460,1750133445821,-411.20787383,0.00016926,2]
[366224462,1750133445830,-490.0,0.00016926,2]
[366224463,1750133445840,-417.22,0.00016926,2]
[366224464,1750133445850,-7508.98,0.00016926,2]
[366224465,1750133445860,-490.0,0.00016926,2]
[366224466,1750133445870,-490.0,0.00016926,2]
[366224467,1750133445880,-659.99,0.00016926,2]
[366224468,1750133445890,-222.9652518,0.00016926,2]
[366224469,1750133445900,-790.01,0.00016926,2]
[366224470,1750133445910,-490.0,0.00016926,2]
[366224471,1750133446005,-1100.7,0.00016926,2]
[366224472,1750133446017,-519.63,0.00016926,2]
[366224473,1750133446027,-490.0,0.00016926,2]
[366224474,1750133446037,-490.0,0.00016926,2]
[366224475,1750133446049,-490.0,0.00016926,2]
[366224476,1750133446059,-490.0,0.00016926,2]
[366224477,1750133446070,-490.0,0.00016926,2]
[366224478,1750133446080,-490.0,0.00016926,2]
[366224479,1750133446090,-490.0,0.00016926,2]
[366224480,1750133446101,-491.91604145,0.00016926,2]
[366224481,1750133446110,-490.0,0.00016926,2]
[366224482,1750133446120,-2270.94,0.00016926,2]
[366224483,1750133446130,-490.0,0.00016926,2]
[366224484,1750133446140,-988.24,0.00016926,2]
[366224485,1750133446150,-490.0,0.00016926,2]
[366224486,1750133446160,-490.0,0.00016926,2]
[366224487,1750133446170,-490.0,0.00016926,2]
[366224488,1750133446180,-2332.09989962,0.00016926,2]
[366224525,1750133446798,-490.0,0.00016925,2]
[366224527,1750133446809,-490.0,0.00016925,2]
[366224529,1750133446819,-490.0,0.00016925,2]
[366224531,1750133446828,-439.80010038,0.00016926,2]
[366224533,1750133446839,-237.07869228,0.00016926,2]
[366224536,1750133446849,-1008.7,0.00016926,2]
[366224538,1750133446859,-2620.43,0.00016926,2]
[366224540,1750133446869,-490.0,0.00016926,2]
[366224542,1750133446880,-490.0,0.00016926,2]
[366224544,1750133446889,-490.0,0.00016926,2]
[366224546,1750133446899,-595.19998423,0.00016926,2]
[366224547,1750133446909,-1209.94,0.00016926,2]
[366224550,1750133446920,-503.82396101,0.00016926,2]
[366224552,1750133446930,-490.0,0.00016926,2]
[366224554,1750133446939,-1081.76,0.00016926,2]
[366224556,1750133446950,-2080.34,0.00016926,2]
[366224557,1750133446959,-490.0,0.00016926,2]
[366224559,1750133446969,-490.0,0.00016926,2]
[366224561,1750133446981,-216.47,0.00016926,2]
[366224563,1750133446991,-490.0,0.00016926,2]
[366224566,1750133447002,-490.0,0.00016926,2]
[366224568,1750133447011,-490.0,0.00016926,2]
[366224570,1750133447022,-490.0,0.00016926,2]
[366224571,1750133447031,-1652.4,0.00016926,2]
[366224573,1750133447042,-490.0,0.00016926,2]
[366224575,1750133447053,-490.0,0.00016926,2]
[366224577,1750133447063,-586.11,0.00016926,2]
[366224580,1750133447073,-490.0,0.00016926,2]
[366224581,1750133447083,-490.0,0.00016926,2]
[366224584,1750133447094,-816.20417397,0.00016926,2]
[366224585,1750133447104,-490.0,0.00016926,2]
[366224588,1750133447114,-490.0,0.00016926,2]
[366224589,1750133447123,-490.0,0.00016926,2]
[366224592,1750133447135,-490.0,0.00016926,2]
[366224594,1750133447145,-538.84,0.00016926,2]
[366224596,1750133447156,-490.0,0.00016926,2]
[366224597,1750133447166,-490.0,0.00016926,2]
[366224599,1750133447176,-490.0,0.00016926,2]
[366224602,1750133447186,-490.0,0.00016926,2]
[366224603,1750133447196,-490.0,0.00016926,2]
[366224605,1750133447207,-490.0,0.00016926,2]
[366224608,1750133447219,-490.0,0.00016926,2]
[366224609,1750133447229,-752.57,0.00016926,2]
[366224611,1750133447238,-384.02,0.00016926,2]
[366224613,1750133447248,-490.0,0.00016926,2]
[366224616,1750133447258,-3159.58,0.00016926,2]
[366224617,1750133447268,-4420.04,0.00016926,2]
[366224619,1750133447278,-490.0,0.00016926,2]
[366224622,1750133447291,-500.6837131,0.00016926,2]
[366224623,1750133447300,-490.0,0.00016926,2]
[366224625,1750133447311,-490.0,0.00016926,2]
[366224627,1750133447320,-774.72,0.00016926,2]
[366224629,1750133447330,-490.0,0.00016926,2]
[366224631,1750133447339,-490.0,0.00016926,2]
[366224633,1750133447349,-490.0,0.00016926,2]
[366224635,1750133447359,-490.0,0.00016926,2]
[366224637,1750133447368,-490.0,0.00016926,2]
[366224639,1750133447378,-490.0,0.00016926,2]
[366224641,1750133447388,-490.0,0.00016926,2]
[366224643,1750133447398,-490.0,0.00016926,2]